fUSD/lending_fUSD_20250504
["ID","MTS","AMOUNT","RATE_DAILY","PERIOD"]
[359872561,1746393046482,-189.54,0.00019998,2]
[359872562,1746393046492,-490.0,0.00019998,2]
[359872563,1746393046501,-450.0,0.00019998,2]
[359872564,1746393046511,-300.76,0.00019998,2]
[359872565,1746393046521,-450.0,0.00019998,2]
[359872566,1746393046532,-450.0,0.00019998,2]
[359872567,1746393046542,-450.0,0.00019998,2]
[359872568,1746393046551,-241.94,0.00019998,2]
[359872569,1746393046560,-450.0,0.00019998,2]
[359872570,1746393046569,-461.20088184,0.00019998,2]
[359872571,1746393046578,-575.20376007,0.00019998,2]
[359872572,1746393046588,-450.0,0.00019998,2]
[359872573,1746393046597,-490.0,0.00019998,2]
[359872574,1746393046606,-450.0,0.00019998,2]
[359872575,1746393046616,-450.0,0.00019998,2]
[359872576,1746393046626,-490.0,0.00019998,2]
[359872577,1746393046636,-450.0,0.00019998,2]
[359872578,1746393046646,-450.0,0.00019998,2]
[359872579,1746393046656,-267.22,0.00019998,2]
[359872580,1746393046665,-490.0,0.00019998,2]
[359872581,1746393046675,-490.0,0.00019998,2]
[359872582,1746393046684,-151.0,0.00019998,2]
[359872583,1746393046694,-151.0,0.00019998,2]
[359872584,1746393046704,-450.0,0.00019998,2]
[359872585,1746393046714,-490.0,0.00019998,2]
[359872586,1746393046723,-450.0,0.00019998,2]
[359872587,1746393046732,-450.0,0.00019998,2]
[359872588,1746393046741,-450.0,0.00019998,2]
[359872589,1746393046750,-559.69475469,0.00019998,2]
[359872590,1746393046760,-490.0,0.00019998,2]
[359872591,1746393046769,-490.0,0.00019998,2]
[359872592,1746393046779,-10964.44,0.00019998,2]
[359872593,1746393046788,-10964.44,0.00019998,2]
[359872594,1746393046799,-450.0,0.00019998,2]
[359872595,1746393046808,-450.0,0.00019998,2]
[359872596,1746393046818,-10964.44,0.00019998,2]
[359872597,1746393046827,-450.0,0.00019998,2]
[359872598,1746393046836,-450.0,0.00019998,2]
[359872599,1746393046846,-528.6,0.00019998,2]
[359872600,1746393046856,-1149.57,0.00019998,2]
[359872601,1746393046865,-1149.57,0.00019998,2]
[359872602,1746393046875,-450.0,0.00019998,2]
[359872603,1746393046885,-1149.57,0.00019998,2]
[359872604,1746393046894,-194.72,0.00019998,2]
[359872605,1746393046904,-590.96,0.00019998,2]
[359872606,1746393046914,-490.0,0.00019998,2]
[359872607,1746393046923,-450.0,0.00019998,2]
[359872608,1746393046934,-450.0,0.00019998,2]
[359872609,1746393046943,-450.0,0.00019998,2]
[359872610,1746393046953,-807.01,0.00019998,2]
[359872611,1746393046962,-807.01,0.00019998,2]
[359872612,1746393046971,-807.01,0.00019998,2]
[359872613,1746393046981,-450.0,0.00019998,2]
[359872614,1746393046991,-450.0,0.00019998,2]
[359872615,1746393047000,-450.0,0.00019998,2]
[359872616,1746393047010,-1149.0,0.00019998,2]
[359872617,1746393047019,-1149.0,0.00019998,2]
[359872618,1746393047029,-1149.0,0.00019998,2]
[359872619,1746393047038,-450.0,0.00019998,2]
[359872620,1746393047048,-450.0,0.00019998,2]
[359872621,1746393047057,-450.0,0.00019998,2]
[359872622,1746393047066,-450.0,0.00019998,2]
[359872623,1746393047075,-351.84,0.00019998,2]
[359872624,1746393047084,-450.0,0.00019998,2]
[359872625,1746393047094,-392.55,0.00019998,2]
[359872626,1746393047104,-450.0,0.00019998,2]
[359872627,1746393047113,-500.0,0.00019998,2]
[359872628,1746393047123,-500.0,0.00019998,2]
[359872629,1746393047132,-500.0,0.00019998,2]
[359872630,1746393047142,-500.0,0.00019998,2]
[359872631,1746393047151,-500.0,0.00019998,2]
[359872632,1746393047161,-500.0,0.00019998,2]
[359872633,1746393047171,-500.0,0.00019998,2]
[359872634,1746393047181,-280.86542501,0.00019998,2]
[359872635,1746393047190,-450.0,0.00019998,2]
[359872636,1746393047200,-986.65,0.00019998,2]
[359872637,1746393047210,-986.65,0.00019998,2]
[359872638,1746393047219,-986.65,0.00019998,2]
[359872639,1746393047229,-14221.83,0.00019998,2]
[359872640,1746393047239,-14221.83,0.00019998,2]
[359872641,1746393047249,-14221.83,0.00019998,2]
[359872642,1746393047259,-124.48585959,0.00019998,2]
[359872643,1746393047732,-861.82414041,0.00019998,2]
[359872644,1746393047742,-66.96831331,0.00019998,2]
[359872645,1746393256876,346.97,0.00017209,2]
[359872646,1746393257119,346.97,0.00019473,2]
[359872651,1746393686953,1000.0,0.00019008,2]
[359872652,1746393750108,150.050506,0.0003,120]
[359872653,1746393774245,150.050506,0.0003,120]
[359872665,1746394203554,-219.99296972,0.00019893,2]
[359872666,1746394204091,-30.00703028,0.00019893,2]
[359872667,1746394204116,-189.98593944,0.00019897,2]
[359872668,1746394217135,-250.0,0.00019897,2]
[359872669,1746394218387,-250.0,0.00019897,2]
[359872671,1746394224688,-384.1518371,0.00019897,2]
[359872672,1746394228192,-125.86222346,0.00019897,2]
[359872673,1746394228214,-92.77121841,0.00019898,3]
[359872692,1746394234624,-60.81038578,0.00019898,3]
[359872693,1746394234648,-266.28570685,0.00019898,2]
[359872695,1746394238167,-164.48451859,0.00019898,2]
[359872696,1746394238176,-300.0,0.00019898,2]
[359872697,1746394238186,-584.41120523,0.00019898,2]
[359872698,1746394238195,-430.7702254,0.00019898,2]
[359872699,1746394238204,-430.7702254,0.00019898,2]
[359872700,1746394238213,-430.7702254,0.00019899,2]
[359872701,1746394238222,-430.7702254,0.00019899,2]
[359872702,1746394238231,-161.07157221,0.00019899,2]
[359872703,1746394238240,-212.25108455,0.00019899,2]
[359872704,1746394238249,-430.7702254,0.00019899,2]
[359872705,1746394238258,-36.53049246,0.00019899,2]
[359872706,1746394238383,-394.23973294,0.00019899,2]
[359872707,1746394238393,-430.7702254,0.000199,2]
[359872708,1746394238402,-83.94809167,0.000199,2]
[359872742,1746394239667,-170.30390737,0.000199,2]
[359872743,1746394240819,-176.51822636,0.000199,2]
[359872744,1746394240829,-430.7702254,0.000199,2]
[359872745,1746394240840,-849.1591768,0.000199,2]
[359872747,1746394243041,-300.0,0.000199,2]
[359872767,1746394246202,-4737.88678269,0.000199,2]
[359872768,1746394246212,-797.0,0.00019972,2]
[359872769,1746394246222,-207.4,0.00019986,2]
[359872770,1746394246231,-4015.523333,0.00019986,2]
[359872771,1746394246241,-166.233,0.00019987,2]
[359872772,1746394246251,-500.0,0.00019996,2]
[359872773,1746394246261,-500.0,0.00019996,2]
[359872774,1746394246270,-450.0,0.00019996,2]
[359872775,1746394246280,-500.0,0.00019996,2]
[359872776,1746394246290,-150.0,0.00019996,2]
[359872777,1746394246299,-450.0,0.00019997,2]
[359872778,1746394246308,-450.0,0.00019997,2]
[359872779,1746394246318,-450.0,0.00019997,2]
[359872780,1746394246328,-377.65,0.00019997,2]
[359872781,1746394246338,-450.0,0.00019997,2]
[359872782,1746394246348,-450.0,0.00019997,2]
[359872783,1746394246358,-450.0,0.00019997,2]
[359872784,1746394246368,-470.0,0.00019997,2]
[359872785,1746394246378,-51.82774819,0.00019997,2]
[359872786,1746394246390,-491.3835587,0.00019997,2]
[359872787,1746394246400,-450.0,0.00019997,2]
[359872788,1746394246410,-450.0,0.00019997,2]
[359872789,1746394246419,-470.0,0.00019997,2]
[359872790,1746394246428,-593.80317312,0.00019997,2]
[359872791,1746394246437,-450.0,0.00019997,2]
[359872792,1746394246447,-473.26502483,0.00019997,2]
[359872793,1746394246456,-530.31733752,0.00019997,2]
[359872794,1746394246467,-450.0,0.00019997,2]
[359872795,1746394246477,-450.0,0.00019997,2]
[359872796,1746394246487,-450.0,0.00019997,2]
[359872797,1746394246497,-450.0,0.00019997,2]
[359872798,1746394246507,-490.0,0.00019997,2]
[359872799,1746394246516,-450.0,0.00019997,2]
[359872800,1746394246526,-241.94,0.00019997,2]
[359872802,1746394246536,-490.0,0.00019997,2]
[359872803,1746394246545,-450.0,0.00019997,2]
[359872804,1746394246555,-575.20376007,0.00019997,2]
[359872805,1746394246565,-433.91188683,0.00019997,2]
[359872806,1746394246577,-56.08811317,0.00019997,2]
[359872807,1746394246586,-450.0,0.00019997,2]
[359872808,1746394246595,-194.72,0.00019997,2]
[359872809,1746394246605,-450.0,0.00019997,2]
[359872810,1746394246614,-450.0,0.00019997,2]
[359872811,1746394246624,-450.0,0.00019997,2]
[359872812,1746394246634,-1169.04628188,0.00019997,2]
[359872813,1746394246652,-4409.74608926,0.00019997,2]
[359872814,1746394336786,312.27,0.00017073,2]
[359872815,1746394337080,312.27,0.00019337,2]
[359872816,1746394772152,-208.356,0.00019726,2]
[359872817,1746394772175,-166.92915118,0.00019726,2]
[359872818,1746394815649,250.0,0.00017,2]
[359872819,1746394816745,300.0,0.00019,2]
[359872821,1746395072147,-41.42684882,0.00019726,2]
[359872822,1746395072170,-250.0,0.00019806,2]
[359872823,1746395072193,-8.57315118,0.00019886,2]
[359872824,1746395088655,1000.0,0.00018963,2]
[359872833,1746395432280,-317.081,0.00019886,2]
[359872834,1746395432290,-1870.1783,0.00019886,2]
[359872835,1746395432300,-250.0,0.00019886,2]
[359872836,1746395432309,-207.4,0.00019886,2]
[359872837,1746395432320,-200.88443727,0.00019896,2]
[359872838,1746395432329,-161.07157221,0.00019898,2]
[359872839,1746395432338,-1200.0,0.00019899,2]
[359872840,1746395432348,-300.0,0.00019899,2]
[359872841,1746395432358,-2052.10016354,0.000199,2]
[359872842,1746395432367,-5690.81109399,0.000199,2]
[359872843,1746395432377,-166.233,0.00019982,2]
[359872844,1746395432387,-797.0,0.00019982,2]
[359872845,1746395432397,-528.954,0.00019982,2]
[359872846,1746395432406,-5578.7291479,0.00019985,2]
[359872847,1746395432415,-27766.76728509,0.00019985,2]
[359872848,1746395432427,-1416.86408133,0.00019985,2]
[359872849,1746395432438,-443.07910095,0.00019985,2]
[359872855,1746395438369,-277.57103379,0.00019985,2]
[359872856,1746395438383,-475.38,0.00019985,2]
[359872857,1746395438528,-4469.34245051,0.00019985,2]
[359872868,1746395440747,-1327.53032938,0.00019898,2]
[359872869,1746395440757,-2143.00614199,0.00019985,2]
[359872870,1746395440768,-1016.4093248,0.00019985,2]
[359872871,1746395440779,-772.63364,0.00019985,2]
[359872872,1746395440790,-1918.14,0.00019985,2]
[359872873,1746395440801,-42862.17042624,0.00019985,2]
[359872874,1746395440810,-4941.1601024,0.00019986,2]
[359872875,1746395440820,-4303.5910569,0.00019986,2]
[359872876,1746395440829,-3666.0220114,0.00019986,2]
[359872877,1746395440838,-3028.452966,0.00019986,2]
[359872878,1746395440848,-2390.8839205,0.00019986,2]
[359872879,1746395440857,-450.0,0.00019996,2]
[359872880,1746395440866,-450.0,0.00019996,2]
[359872881,1746395440876,-450.0,0.00019996,2]
[359872882,1746395440886,-450.0,0.00019996,2]
[359872883,1746395440895,-450.0,0.00019996,2]
[359872884,1746395440905,-450.0,0.00019996,2]
[359872885,1746395440914,-568.59,0.00019996,2]
[359872886,1746395440924,-546.63613068,0.00019996,2]
[359872887,1746395440933,-506.28501727,0.00019996,2]
[359872888,1746395440942,-450.0,0.00019996,2]
[359872889,1746395440953,-960.32,0.00019996,2]
[359872890,1746395440963,-450.0,0.00019996,2]
[359872891,1746395440973,-165.89797231,0.00019996,2]
[359872892,1746395440983,-450.0,0.00019996,2]
[359872893,1746395440993,-450.0,0.00019996,2]
[359872894,1746395441003,-450.0,0.00019996,2]
[359872895,1746395441012,-963.51,0.00019996,2]
[359872896,1746395441021,-450.0,0.00019996,2]
[359872897,1746395441030,-450.0,0.00019996,2]
[359872898,1746395441039,-470.0,0.00019996,2]
[359872899,1746395441049,-450.0,0.00019996,2]
[359872900,1746395441058,-461.20088184,0.00019997,2]
[359872901,1746395441067,-450.0,0.00019997,2]
[359872902,1746395441077,-450.0,0.00019997,2]
[359872903,1746395441086,-450.0,0.00019997,2]
[359872904,1746395441096,-559.69475469,0.00019997,2]
[359872905,1746395441105,-490.0,0.00019997,2]
[359872906,1746395441115,-450.0,0.00019997,2]
[359872907,1746395441124,-499.88966137,0.00019997,2]
[359872908,1746395441134,-490.0,0.00019997,2]
[359872909,1746395441144,-450.0,0.00019997,2]
[359872910,1746395441153,-500.0,0.00019997,2]
[359872911,1746395441162,-450.0,0.00019997,2]
[359872912,1746395441171,-450.0,0.00019997,2]
[359872913,1746395441181,-470.0,0.00019997,2]
[359872914,1746395441190,-450.0,0.00019997,2]
[359872915,1746395441199,-490.0,0.00019997,2]
[359872916,1746395441209,-450.0,0.00019997,2]
[359872917,1746395441218,-450.0,0.00019997,2]
[359872918,1746395441226,-450.0,0.00019997,2]
[359872919,1746395441235,-203.41609389,0.00019997,2]
[359872920,1746395441244,-470.0,0.00019997,2]
[359872921,1746395441254,-450.0,0.00019997,2]
[359872922,1746395441263,-598.4,0.00019997,2]
[359872923,1746395441272,-450.0,0.00019997,2]
[359872924,1746395441281,-150.42,0.00019997,2]
[359872925,1746395441291,-450.0,0.00019997,2]
[359872926,1746395441300,-490.0,0.00019997,2]
[359872927,1746395441309,-450.0,0.00019997,2]
[359872928,1746395441318,-381.44,0.00019997,2]
[359872929,1746395441328,-554.47165926,0.00019997,2]
[359872930,1746395441337,-576.72,0.00019997,2]
[359872931,1746395441346,-450.0,0.00019997,2]
[359872932,1746395441355,-490.0,0.00019997,2]
[359872933,1746395441364,-297.38,0.00019997,2]
[359872934,1746395441374,-450.0,0.00019997,2]
[359872935,1746395441383,-450.0,0.00019997,2]
[359872936,1746395441392,-450.0,0.00019997,2]
[359872937,1746395441401,-450.0,0.00019997,2]
[359872938,1746395441410,-450.0,0.00019997,2]
[359872939,1746395441419,-450.0,0.00019997,2]
[359872940,1746395441429,-450.0,0.00019997,2]
[359872941,1746395441439,-450.0,0.00019997,2]
[359872942,1746395441448,-450.0,0.00019997,2]
[359872943,1746395441457,-450.0,0.00019997,2]
[359872944,1746395441466,-490.0,0.00019997,2]
[359872945,1746395441475,-450.0,0.00019997,2]
[359872946,1746395441485,-490.0,0.00019997,2]
[359872947,1746395441494,-450.0,0.00019997,2]
[359872948,1746395441503,-490.0,0.00019997,2]
[359872949,1746395441512,-450.0,0.00019997,2]
[359872950,1746395441522,-259.66,0.00019997,2]
[359872951,1746395441531,-450.0,0.00019997,2]
[359872952,1746395441540,-450.0,0.00019997,2]
[359872953,1746395441549,-490.0,0.00019997,2]
[359872954,1746395441559,-450.0,0.00019997,2]
[359872955,1746395441568,-450.0,0.00019997,2]
[359872956,1746395441577,-450.0,0.00019997,2]
[359872957,1746395441586,-450.0,0.00019997,2]
[359872958,1746395441596,-450.0,0.00019997,2]
[359872959,1746395441605,-490.0,0.00019997,2]
[359872960,1746395441614,-450.0,0.00019997,2]
[359872961,1746395441624,-450.0,0.00019997,2]
[359872962,1746395441633,-542.23,0.00019997,2]
[359872963,1746395441642,-470.0,0.00019997,2]
[359872964,1746395441652,-287.41712154,0.00019997,2]
[359872965,1746395441661,-185.27055521,0.00019997,2]
[359872966,1746395441670,-536.02996085,0.00019997,2]
[359872967,1746395441680,-450.0,0.00019997,2]
[359872968,1746395441691,-470.0,0.00019997,2]
[359872969,1746395441702,-522.22462358,0.00019997,2]
[359872970,1746395441711,-450.0,0.00019997,2]
[359872971,1746395441720,-470.0,0.00019997,2]
[359872972,1746395441729,-450.0,0.00019997,2]
[359872973,1746395441739,-450.0,0.00019997,2]
[359872974,1746395441749,-511.51689646,0.00019997,2]
[359872975,1746395441758,-450.0,0.00019997,2]
[359872976,1746395441767,-490.0,0.00019997,2]
[359872977,1746395441777,-490.0,0.00019997,2]
[359872978,1746395441786,-450.0,0.00019997,2]
[359872979,1746395441796,-450.0,0.00019997,2]
[359872980,1746395441806,-444.72482314,0.00019997,2]
[359872981,1746395441815,-450.0,0.00019997,2]
[359872982,1746395441825,-450.0,0.00019997,2]
[359872983,1746395441835,-450.0,0.00019997,2]
[359872984,1746395441844,-450.0,0.00019997,2]
[359872985,1746395441854,-470.0,0.00019997,2]
[359872986,1746395441864,-470.0,0.00019997,2]
[359872987,1746395441874,-300.76,0.00019997,2]
[359872988,1746395441883,-470.0,0.00019997,2]
[359872989,1746395441892,-450.0,0.00019997,2]
[359872990,1746395441902,-450.0,0.00019997,2]
[359872991,1746395441911,-450.0,0.00019997,2]
[359872992,1746395441921,-500.0,0.00019997,2]
[359872993,1746395441930,-470.0,0.00019997,2]
[359872994,1746395441939,-450.0,0.00019997,2]
[359872995,1746395441949,-450.0,0.00019997,2]
[359872996,1746395441959,-450.0,0.00019997,2]
[359872997,1746395441968,-450.0,0.00019997,2]
[359872998,1746395441977,-250.0,0.00019997,2]
[359872999,1746395441987,-470.0,0.00019997,2]
[359873000,1746395441996,-450.0,0.00019997,2]
[359873001,1746395442006,-450.0,0.00019997,2]
[359873002,1746395442016,-400.0,0.00019997,2]
[359873003,1746395442025,-450.0,0.00019997,2]
[359873004,1746395442035,-598.85,0.00019997,2]
[359873005,1746395442045,-470.0,0.00019997,2]
[359873006,1746395442055,-450.0,0.00019997,2]
[359873007,1746395442065,-450.0,0.00019997,2]
[359873008,1746395442074,-528.6,0.00019997,2]
[359873009,1746395442084,-470.0,0.00019997,2]
[359873010,1746395442093,-450.0,0.00019997,2]
[359873011,1746395442103,-470.0,0.00019997,2]
[359873012,1746395442112,-470.0,0.00019997,2]
[359873013,1746395442122,-470.0,0.00019997,2]
[359873014,1746395442131,-537.74348617,0.00019997,2]
[359873015,1746395442141,-470.0,0.00019997,2]
[359873016,1746395442151,-566.26,0.00019997,2]
[359873017,1746395442160,-470.0,0.00019997,2]
[359873018,1746395442170,-450.0,0.00019997,2]
[359873019,1746395442179,-470.0,0.00019997,2]
[359873020,1746395442189,-470.0,0.00019997,2]
[359873021,1746395442198,-450.0,0.00019997,2]
[359873022,1746395442207,-450.0,0.00019997,2]
[359873023,1746395442217,-450.0,0.00019997,2]
[359873024,1746395442227,-10275.14,0.00019997,2]
[359873025,1746395442236,-450.0,0.00019997,2]
[359873026,1746395442246,-450.0,0.00019997,2]
[359873027,1746395442255,-470.0,0.00019997,2]
[359873028,1746395442264,-470.0,0.00019997,2]
[359873029,1746395442273,-470.0,0.00019997,2]
[359873030,1746395442283,-773.39,0.00019997,2]
[359873031,1746395442292,-450.0,0.00019997,2]
[359873032,1746395442302,-263.15803708,0.00019997,2]
[359873033,1746395442311,-982.19,0.00019997,2]
[359873034,1746395442320,-470.0,0.00019997,2]
[359873035,1746395442330,-470.0,0.00019997,2]
[359873036,1746395442339,-1101.13,0.00019997,2]
[359873037,1746395442348,-470.0,0.00019997,2]
[359873038,1746395442358,-450.0,0.00019997,2]
[359873039,1746395442368,-470.0,0.00019997,2]
[359873040,1746395442377,-157.69380446,0.00019997,2]
[359873041,1746395442387,-450.0,0.00019997,2]
[359873042,1746395442397,-470.0,0.00019997,2]
[359873043,1746395442406,-474.52160316,0.00019997,2]
[359873044,1746395442416,-470.0,0.00019997,2]
[359873045,1746395442425,-450.0,0.00019997,2]
[359873046,1746395442435,-470.0,0.00019997,2]
[359873047,1746395442444,-470.0,0.00019997,2]
[359873048,1746395442454,-354.49626892,0.00019997,2]
[359873049,1746395442464,-470.0,0.00019997,2]
[359873050,1746395442473,-470.0,0.00019997,2]
[359873051,1746395442482,-450.0,0.00019997,2]
[359873052,1746395442492,-549.36,0.00019997,2]
[359873053,1746395442501,-470.0,0.00019997,2]
[359873054,1746395442511,-450.0,0.00019997,2]
[359873055,1746395442520,-470.0,0.00019997,2]
[359873056,1746395442689,-450.0,0.00019997,2]
[359873057,1746395442702,-450.0,0.00019997,2]
[359873058,1746395442711,-470.0,0.00019997,2]
[359873059,1746395442720,-470.0,0.00019997,2]
[359873060,1746395442730,-539.02713298,0.00019997,2]
[359873061,1746395442740,-470.0,0.00019997,2]
[359873062,1746395442750,-456.34636916,0.00019997,2]
[359873063,1746395442759,-470.0,0.00019997,2]
[359873064,1746395442769,-549.98701002,0.00019997,2]
[359873065,1746395442778,-470.0,0.00019997,2]
[359873066,1746395442789,-308.74,0.00019997,2]
[359873067,1746395442799,-470.0,0.00019997,2]
[359873068,1746395442808,-470.0,0.00019997,2]
[359873069,1746395442818,-470.0,0.00019997,2]
[359873070,1746395442827,-392.55,0.00019997,2]
[359873071,1746395442836,-470.0,0.00019997,2]
[359873072,1746395442846,-450.0,0.00019997,2]
[359873073,1746395442856,-450.0,0.00019997,2]
[359873074,1746395442867,-470.0,0.00019997,2]
[359873075,1746395442876,-338.33223451,0.00019997,2]
[359873076,1746395442885,-470.0,0.00019997,2]
[359873077,1746395442895,-500.0,0.00019997,2]
[359873078,1746395442904,-450.0,0.00019997,2]
[359873079,1746395442914,-470.0,0.00019997,2]
[359873080,1746395442923,-945.54,0.00019997,2]
[359873081,1746395442932,-450.0,0.00019997,2]
[359873082,1746395442942,-470.0,0.00019997,2]
[359873083,1746395442951,-1000.0,0.00019997,2]
[359873084,1746395442961,-470.0,0.00019997,2]
[359873085,1746395442971,-450.0,0.00019997,2]
[359873086,1746395442980,-15167.84,0.00019997,2]
[359873087,1746395442990,-549.50420409,0.00019997,2]
[359873088,1746395442999,-470.0,0.00019997,2]
[359873089,1746395443009,-470.0,0.00019997,2]
[359873090,1746395443019,-470.0,0.00019997,2]
[359873091,1746395443028,-531.57,0.00019997,2]
[359873092,1746395443038,-470.0,0.00019997,2]
[359873093,1746395443048,-193.41,0.00019997,2]
[359873094,1746395443057,-450.0,0.00019997,2]
[359873095,1746395443068,-1000.0,0.00019997,2]
[359873097,1746395443078,-269.75,0.00019997,2]
[359873098,1746395443087,-470.0,0.00019997,2]
[359873099,1746395443097,-450.0,0.00019997,2]
[359873100,1746395443106,-470.0,0.00019997,2]
[359873101,1746395443115,-470.0,0.00019997,2]
[359873102,1746395443124,-470.0,0.00019997,2]
[359873103,1746395443134,-450.0,0.00019997,2]
[359873104,1746395443143,-450.0,0.00019997,2]
[359873106,1746395443153,-9544.93856963,0.00019998,2]
[359873107,1746395443163,-151.0,0.00019998,2]
[359873108,1746395443173,-151.0,0.00019998,2]
[359873109,1746395443183,-598.18372447,0.00019998,2]
[359873110,1746395443192,-151.0,0.00019998,2]
[359873111,1746395443201,-503.31125843,0.00019998,2]
[359873112,1746395443210,-450.0,0.00019998,2]
[359873113,1746395443219,-450.0,0.00019998,2]
[359873114,1746395443229,-450.0,0.00019998,2]
[359873115,1746395443238,-450.0,0.00019998,2]
[359873116,1746395443248,-450.0,0.00019998,2]
[359873117,1746395443258,-450.0,0.00019998,2]
[359873119,1746395443267,-151.0,0.00019998,2]
[359873120,1746395443276,-490.0,0.00019998,2]
[359873121,1746395443285,-590.96,0.00019998,2]
[359873122,1746395443294,-450.0,0.00019998,2]
[359873123,1746395443304,-490.0,0.00019998,2]
[359873124,1746395443316,-450.0,0.00019998,2]
[359873125,1746395443327,-490.0,0.00019998,2]
[359873126,1746395443336,-450.0,0.00019998,2]
[359873127,1746395443345,-267.22,0.00019998,2]
[359873128,1746395443354,-450.0,0.00019998,2]
[359873129,1746395443363,-490.0,0.00019998,2]
[359873130,1746395443373,-490.0,0.00019998,2]
[359873131,1746395443382,-490.0,0.00019998,2]
[359873132,1746395443391,-450.0,0.00019998,2]
[359873133,1746395443399,-450.0,0.00019998,2]
[359873134,1746395443409,-450.0,0.00019998,2]
[359873135,1746395443417,-450.0,0.00019998,2]
[359873136,1746395443427,-450.0,0.00019998,2]
[359873137,1746395443436,-450.0,0.00019998,2]
[359873138,1746395443445,-450.0,0.00019998,2]
[359873139,1746395443455,-513.6890662,0.00019998,2]
[359873140,1746395443464,-450.0,0.00019998,2]
[359873141,1746395443473,-560.43,0.00019998,2]
[359873142,1746395443482,-151.0,0.00019998,2]
[359873143,1746395443491,-151.0,0.00019998,2]
[359873144,1746395443500,-450.0,0.00019998,2]
[359873145,1746395443509,-450.0,0.00019998,2]
[359873146,1746395443519,-450.0,0.00019998,2]
[359873147,1746395443528,-450.0,0.00019998,2]
[359873148,1746395443537,-440.1,0.00019998,2]
[359873149,1746395443546,-490.0,0.00019998,2]
[359873150,1746395443556,-470.0,0.00019998,2]
[359873151,1746395443565,-470.0,0.00019998,2]
[359873152,1746395443574,-470.0,0.00019998,2]
[359873153,1746395443584,-169.94,0.00019998,2]
[359873154,1746395443593,-541.88,0.00019998,2]
[359873155,1746395443603,-538.80739267,0.00019998,2]
[359873156,1746395443612,-185.86546102,0.00019998,2]
[359873157,1746395443621,-470.0,0.00019998,2]
[359873158,1746395443630,-252.34,0.00019998,2]
[359873159,1746395443639,-450.0,0.00019998,2]
[359873160,1746395443648,-450.0,0.00019998,2]
[359873161,1746395443657,-450.0,0.00019998,2]
[359873162,1746395443668,-450.0,0.00019998,2]
[359873163,1746395443679,-450.0,0.00019998,2]
[359873164,1746395443688,-450.0,0.00019998,2]
[359873165,1746395443698,-151.0,0.00019998,2]
[359873166,1746395443707,-274.93935,0.00019998,2]
[359873167,1746395443717,-490.0,0.00019998,2]
[359873168,1746395443727,-470.0,0.00019998,2]
[359873169,1746395443736,-320.2,0.00019998,2]
[359873170,1746395443745,-470.0,0.00019998,2]
[359873171,1746395443755,-532.724592,0.00019998,2]
[359873172,1746395443763,-450.0,0.00019998,2]
[359873173,1746395443772,-450.0,0.00019998,2]
[359873174,1746395443782,-450.0,0.00019998,2]
[359873175,1746395443791,-516.15122785,0.00019998,2]
[359873176,1746395443800,-524.3,0.00019998,2]